[Event "Late-Titled-Tuesday-Blitz-May-28-2024"]
[Site "Chess.com"]
[Date "2024.05.28"]
[Round "3"]
[White "Sanan_Sjugirov"]
[Black "Goryachkina"]
[Result "0-1"]
[WhiteElo "2978"]
[BlackElo "2707"]
[TimeControl "180+1"]
[EndTime "14:30:08 PDT"]
[Termination "Goryachkina won by resignation"]

1. e4 {[%clk 0:03:00.9]} 1... e5 {[%clk 0:02:59.4]} 2. Nf3 {[%clk 0:03:00.9]}
2... Nc6 {[%clk 0:02:59.4]} 3. Bb5 {[%clk 0:03:01.4]} 3... a6 {[%clk 0:02:59.2]}
4. Ba4 {[%clk 0:03:01.2]} 4... Nge7 {[%clk 0:02:57.8]} 5. d4 {[%clk 0:02:52.3]}
5... exd4 {[%clk 0:02:51.9]} 6. Nxd4 {[%clk 0:02:52.4]} 6... Nxd4 {[%clk
0:02:50.2]} 7. Qxd4 {[%clk 0:02:52.7]} 7... Nc6 {[%clk 0:02:50.1]} 8. Qd3 {[%clk
0:02:46.4]} 8... Bc5 {[%clk 0:02:34.7]} 9. O-O {[%clk 0:02:42.8]} 9... O-O
{[%clk 0:02:32.7]} 10. Nc3 {[%clk 0:02:37.4]} 10... d6 {[%clk 0:02:28.9]} 11.
Bxc6 {[%clk 0:02:23]} 11... bxc6 {[%clk 0:02:28.7]} 12. Be3 {[%clk 0:02:23.6]}
12... Bxe3 {[%clk 0:02:21.6]} 13. Qxe3 {[%clk 0:02:24.5]} 13... Re8 {[%clk
0:02:21.4]} 14. Rfe1 {[%clk 0:02:19.1]} 14... c5 {[%clk 0:02:20.2]} 15. Qg3
{[%clk 0:02:14.7]} 15... Rb8 {[%clk 0:02:00.7]} 16. b3 {[%clk 0:02:12.9]} 16...
f6 {[%clk 0:01:55.2]} 17. Rad1 {[%clk 0:02:06.3]} 17... Bb7 {[%clk 0:01:52.3]}
18. f3 {[%clk 0:02:00.6]} 18... Qe7 {[%clk 0:01:51.7]} 19. Nd5 {[%clk
0:01:27.8]} 19... Bxd5 {[%clk 0:01:41.1]} 20. Rxd5 {[%clk 0:01:28.7]} 20... Qf7
{[%clk 0:01:38.8]} 21. Red1 {[%clk 0:01:26.6]} 21... Re5 {[%clk 0:01:35.2]} 22.
Qf2 {[%clk 0:01:21.3]} 22... Rbe8 {[%clk 0:01:22.8]} 23. Qf1 {[%clk 0:01:08.7]}
23... f5 {[%clk 0:01:19]} 24. Rxe5 {[%clk 0:01:03.2]} 24... Rxe5 {[%clk
0:01:17.2]} 25. Qxa6 {[%clk 0:01:00.1]} 25... fxe4 {[%clk 0:01:13]} 26. fxe4
{[%clk 0:00:49]} 26... Rxe4 {[%clk 0:01:09.1]} 27. Rf1 {[%clk 0:00:41.1]} 27...
Qe8 {[%clk 0:01:08.2]} 28. Qd3 {[%clk 0:00:34.1]} 28... h6 {[%clk 0:00:47.1]}
29. a4 {[%clk 0:00:31.9]} 29... c4 {[%clk 0:00:42.8]} 30. bxc4 {[%clk
0:00:17.1]} 30... Re5 {[%clk 0:00:40.4]} 31. Qb3 {[%clk 0:00:10.6]} 31... Kh8
{[%clk 0:00:32.5]} 32. h3 {[%clk 0:00:10.5]} 32... Ra5 {[%clk 0:00:25.6]} 33.
Ra1 {[%clk 0:00:05.2]} 33... Qa8 {[%clk 0:00:21.8]} 34. Qb4 {[%clk 0:00:03.7]}
34... Rg5 {[%clk 0:00:16.3]} 35. Qd2 {[%clk 0:00:02.9]} 35... Ra5 {[%clk
0:00:15.5]} 36. Qb4 {[%clk 0:00:02.5]} 36... Rg5 {[%clk 0:00:15.6]} 37. Qd2
{[%clk 0:00:03]} 37... Ra5 {[%clk 0:00:15.9]} 38. Rf1 {[%clk 0:00:03.1]} 38...
Rxa4 {[%clk 0:00:12.8]} 39. Qf4 {[%clk 0:00:03.1]} 39... Ra1 {[%clk 0:00:10.4]}
40. Kh2 {[%clk 0:00:02.5]} 40... Rxf1 {[%clk 0:00:09.9]} 41. Qxf1 {[%clk
0:00:03.4]} 41... Qe4 {[%clk 0:00:08.7]} 42. Kh1 {[%clk 0:00:01.6]} 42... Qe5
{[%clk 0:00:07.2]} 43. Qd3 {[%clk 0:00:01.4]} 43... c5 {[%clk 0:00:07]} 44. Kg1
{[%clk 0:00:01.9]} 44... Kg8 {[%clk 0:00:06.8]} 45. Kh1 {[%clk 0:00:02.4]} 45...
Kh8 {[%clk 0:00:06.7]} 46. Kg1 {[%clk 0:00:02.5]} 46... Qf4 {[%clk 0:00:07.2]}
47. Qe2 {[%clk 0:00:02.4]} 47... Qd4+ {[%clk 0:00:07]} 48. Kh1 {[%clk
0:00:02.6]} 48... Qa1+ {[%clk 0:00:06.1]} 49. Kh2 {[%clk 0:00:03.2]} 49... Qe5+
{[%clk 0:00:04.6]} 50. Qxe5 {[%clk 0:00:03.3]} 50... dxe5 {[%clk 0:00:04.9]} 51.
Kg3 {[%clk 0:00:04.2]} 51... Kg8 {[%clk 0:00:05.4]} 52. Kf3 {[%clk 0:00:04.6]}
52... Kf7 {[%clk 0:00:05.4]} 53. Ke4 {[%clk 0:00:05.3]} 53... Ke6 {[%clk
0:00:05.8]} 54. h4 {[%clk 0:00:04]} 54... h5 {[%clk 0:00:05.3]} 55. g3 {[%clk
0:00:03.6]} 55... g6 {[%clk 0:00:05.5]} 56. Ke3 {[%clk 0:00:01.5]} 56... Kf5
{[%clk 0:00:04.9]} 57. Kf3 {[%clk 0:00:02.2]} 57... e4+ {[%clk 0:00:03.7]} 58.
Ke3 {[%clk 0:00:02.8]} 58... Ke5 {[%clk 0:00:04]} 59. c3 {[%clk 0:00:02.1]}
59... Kf5 {[%clk 0:00:04.5]} 60. Ke2 {[%clk 0:00:02.1]} 60... Kg4 {[%clk
0:00:03.8]} 61. Kf2 {[%clk 0:00:02.8]} 61... e3+ {[%clk 0:00:02.1]} 62. Kxe3
{[%clk 0:00:02.8]} 62... Kxg3 {[%clk 0:00:02.7]} 63. Ke4 {[%clk 0:00:03.5]}
63... Kxh4 {[%clk 0:00:03.1]} 64. Kd5 {[%clk 0:00:04.4]} 64... Kg3 {[%clk
0:00:02.3]} 65. Kxc5 {[%clk 0:00:05.3]} 65... h4 {[%clk 0:00:03]} 66. Kb6 {[%clk
0:00:06.2]} 66... h3 {[%clk 0:00:03.9]} 67. c5 {[%clk 0:00:07.1]} 67... h2
{[%clk 0:00:04.7]} 68. c6 {[%clk 0:00:08]} 68... h1=Q {[%clk 0:00:05.2]} 69. c7
{[%clk 0:00:08.9]} 69... Qg1+ {[%clk 0:00:05.6]} 0-1

[Event "Late-Titled-Tuesday-Blitz-May-28-2024"]
[Site "Chess.com"]
[Date "2024.05.28"]
[Round "3"]
[White "BillCoe"]
[Black "TheAlienParty"]
[Result "0-1"]
[WhiteElo "2081"]
[BlackElo "2375"]
[TimeControl "180+1"]
[EndTime "14:30:09 PDT"]
[Termination "TheAlienParty won on time"]

1. e4 {[%clk 0:03:00.9]} 1... e5 {[%clk 0:02:59]} 2. Nf3 {[%clk 0:03:01.4]} 2...
Nc6 {[%clk 0:02:58.4]} 3. Bb5 {[%clk 0:03:01.9]} 3... a6 {[%clk 0:02:57.8]} 4.
Ba4 {[%clk 0:03:02.5]} 4... d6 {[%clk 0:02:57.3]} 5. O-O {[%clk 0:03:02]} 5...
Bd7 {[%clk 0:02:54.7]} 6. c3 {[%clk 0:03:01.3]} 6... g5 {[%clk 0:02:54.4]} 7. d4
{[%clk 0:02:57.8]} 7... g4 {[%clk 0:02:54.3]} 8. Ne1 {[%clk 0:02:58]} 8... h5
{[%clk 0:02:54]} 9. Be3 {[%clk 0:02:19]} 9... Bg7 {[%clk 0:02:45.3]} 10. d5
{[%clk 0:02:16.1]} 10... Nce7 {[%clk 0:02:44.3]} 11. Bxd7+ {[%clk 0:02:15.5]}
11... Qxd7 {[%clk 0:02:44.1]} 12. Nd2 {[%clk 0:02:14.1]} 12... f5 {[%clk
0:02:41.5]} 13. f3 {[%clk 0:02:12.6]} 13... f4 {[%clk 0:02:40.2]} 14. Bf2 {[%clk
0:02:07.3]} 14... Nf6 {[%clk 0:02:38.8]} 15. Bh4 {[%clk 0:02:04.6]} 15... Ng6
{[%clk 0:02:37.3]} 16. Bxf6 {[%clk 0:02:03.8]} 16... Bxf6 {[%clk 0:02:37]} 17.
c4 {[%clk 0:02:02.3]} 17... gxf3 {[%clk 0:02:28.4]} 18. Ndxf3 {[%clk 0:02:00]}
18... h4 {[%clk 0:02:27.8]} 19. h3 {[%clk 0:01:56.7]} 19... O-O-O {[%clk
0:02:04.7]} 20. Qc2 {[%clk 0:01:56.3]} 20... Rdg8 {[%clk 0:02:02.9]} 21. Kh2
{[%clk 0:01:53.7]} 21... Kb8 {[%clk 0:02:02]} 22. b4 {[%clk 0:01:54.2]} 22...
Rg7 {[%clk 0:01:55.3]} 23. c5 {[%clk 0:01:54.3]} 23... Rhg8 {[%clk 0:01:52.3]}
24. c6 {[%clk 0:01:54.3]} 24... Qc8 {[%clk 0:01:50.7]} 25. cxb7 {[%clk
0:01:54.2]} 25... Qxb7 {[%clk 0:01:49.4]} 26. a4 {[%clk 0:01:54.1]} 26... Nh8
{[%clk 0:01:40.2]} 27. a5 {[%clk 0:01:54.3]} 27... Nf7 {[%clk 0:01:39.3]} 28. b5
{[%clk 0:01:54.2]} 28... axb5 {[%clk 0:01:38.8]} 29. a6 {[%clk 0:01:54.6]} 29...
Qa7 {[%clk 0:01:31.9]} 30. Qb2 {[%clk 0:01:41.4]} 30... Ng5 {[%clk 0:01:18.9]}
31. Qxb5+ {[%clk 0:01:39.3]} 31... Kc8 {[%clk 0:01:18.6]} 32. Qb7+ {[%clk
0:01:05]} 32... Qxb7 {[%clk 0:01:15.9]} 33. axb7+ {[%clk 0:01:05.9]} 33... Kxb7
{[%clk 0:01:16.3]} 34. Rf2 {[%clk 0:01:04]} 34... Nxe4 {[%clk 0:01:14.7]} 35.
Rb2+ {[%clk 0:01:03]} 35... Kc8 {[%clk 0:01:14.6]} 36. Ra7 {[%clk 0:00:56.6]}
36... Nc5 {[%clk 0:01:09.4]} 37. Rc2 {[%clk 0:00:51.7]} 37... Kd7 {[%clk
0:01:07.1]} 38. Nd3 {[%clk 0:00:51.7]} 38... Nxd3 {[%clk 0:00:55.3]} 39. Raxc7+
{[%clk 0:00:47.7]} 39... Ke8 {[%clk 0:00:53.8]} 40. Rc8+ {[%clk 0:00:44.1]}
40... Bd8 {[%clk 0:00:53.5]} 41. Nxh4 {[%clk 0:00:38.2]} 41... Ne1 {[%clk
0:00:51.8]} 42. Re2 {[%clk 0:00:36.2]} 42... Nd3 {[%clk 0:00:26.3]} 43. Nf5
{[%clk 0:00:34.8]} 43... Rg6 {[%clk 0:00:24.8]} 44. Nh4 {[%clk 0:00:25.8]} 44...
Kd7 {[%clk 0:00:21]} 45. Rec2 {[%clk 0:00:13.4]} 45... Nc5 {[%clk 0:00:18.9]}
46. R8xc5 {[%clk 0:00:10.4]} 46... Bxh4 {[%clk 0:00:17]} 47. Rc7+ {[%clk
0:00:08.7]} 47... Ke8 {[%clk 0:00:17]} 48. Rc8+ {[%clk 0:00:08.8]} 48... Bd8
{[%clk 0:00:17.1]} 49. Ra8 {[%clk 0:00:08.4]} 49... Kf7 {[%clk 0:00:14.5]} 50.
Kh1 {[%clk 0:00:08.2]} 50... Be7 {[%clk 0:00:13.7]} 51. Ra7 {[%clk 0:00:07.9]}
51... Re8 {[%clk 0:00:13.4]} 52. Rcc7 {[%clk 0:00:07.4]} 52... Kf6 {[%clk
0:00:13.4]} 53. Rd7 {[%clk 0:00:07.7]} 53... Rg3 {[%clk 0:00:13.3]} 54. Ra2
{[%clk 0:00:06.6]} 54... e4 {[%clk 0:00:13.1]} 55. Ra6 {[%clk 0:00:06.8]} 55...
Ke5 {[%clk 0:00:12.8]} 56. Raa7 {[%clk 0:00:06.4]} 56... Bf6 {[%clk 0:00:12]}
57. Rh7 {[%clk 0:00:05.7]} 57... Kxd5 {[%clk 0:00:11.9]} 58. Rh5+ {[%clk
0:00:05.9]} 58... Be5 {[%clk 0:00:11.9]} 59. Ra5+ {[%clk 0:00:05.8]} 59... Kd4
{[%clk 0:00:12.1]} 60. Rh7 {[%clk 0:00:05.8]} 60... Rc3 {[%clk 0:00:10.5]} 61.
Ra4+ {[%clk 0:00:02.5]} 61... Rc4 {[%clk 0:00:10.4]} 62. Ra1 {[%clk 0:00:01]}
62... e3 {[%clk 0:00:10.1]} 63. Rd1+ {[%clk 0:00:01.1]} 63... Ke4 {[%clk
0:00:10.3]} 64. Re7 {[%clk 0:00:01]} 64... Rc2 {[%clk 0:00:09.8]} 65. Rxe8
{[%clk 0:00:01]} 65... e2 {[%clk 0:00:10]} 66. Rxe5+ {[%clk 0:00:01]} 66... dxe5
{[%clk 0:00:09.9]} 67. Re1 {[%clk 0:00:01.5]} 67... Ke3 {[%clk 0:00:10.1]} 68.
Kg1 {[%clk 0:00:02.1]} 68... Rd2 {[%clk 0:00:10.2]} 69. g4 {[%clk 0:00:01]}
69... Rd1 {[%clk 0:00:10.2]} 0-1

[Event "Late-Titled-Tuesday-Blitz-May-28-2024"]
[Site "Chess.com"]
[Date "2024.05.28"]
[Round "3"]
[White "ChEsper99"]
[Black "subham777"]
[Result "0-1"]
[WhiteElo "2242"]
[BlackElo "2571"]
[TimeControl "180+1"]
[EndTime "14:30:11 PDT"]
[Termination "subham777 won on time"]

1. e4 {[%clk 0:02:59.6]} 1... e6 {[%clk 0:02:59.2]} 2. d4 {[%clk 0:02:58.9]}
2... d5 {[%clk 0:02:58.7]} 3. Nd2 {[%clk 0:02:58.5]} 3... c5 {[%clk 0:02:58.2]}
4. exd5 {[%clk 0:02:58]} 4... Qxd5 {[%clk 0:02:59.1]} 5. Ngf3 {[%clk 0:02:58.2]}
5... cxd4 {[%clk 0:02:59.6]} 6. Bc4 {[%clk 0:02:58.8]} 6... Qd7 {[%clk 0:03:00]}
7. O-O {[%clk 0:02:59.1]} 7... Nc6 {[%clk 0:02:59.2]} 8. Nb3 {[%clk 0:02:59.4]}
8... Nf6 {[%clk 0:02:59.9]} 9. Nbxd4 {[%clk 0:02:59.8]} 9... Nxd4 {[%clk
0:03:00.8]} 10. Qxd4 {[%clk 0:03:00.1]} 10... a6 {[%clk 0:03:01.7]} 11. Rd1
{[%clk 0:02:54.2]} 11... Qxd4 {[%clk 0:03:00.9]} 12. Nxd4 {[%clk 0:02:54]} 12...
Bd7 {[%clk 0:03:01.4]} 13. a4 {[%clk 0:02:50.8]} 13... Bc5 {[%clk 0:02:59.4]}
14. Nb3 {[%clk 0:02:48.7]} 14... Ba7 {[%clk 0:02:55]} 15. Be3 {[%clk 0:02:30.2]}
15... Bxe3 {[%clk 0:02:52.4]} 16. fxe3 {[%clk 0:02:31.1]} 16... Rc8 {[%clk
0:02:50.2]} 17. Bd3 {[%clk 0:02:20.6]} 17... O-O {[%clk 0:02:45.4]} 18. Kf2
{[%clk 0:02:18.9]} 18... Bc6 {[%clk 0:02:41.2]} 19. h3 {[%clk 0:02:16]} 19...
Rfd8 {[%clk 0:02:37.8]} 20. Nd2 {[%clk 0:02:13.3]} 20... h6 {[%clk 0:02:28.1]}
21. g4 {[%clk 0:02:06.4]} 21... g6 {[%clk 0:02:26.8]} 22. a5 {[%clk 0:02:06.2]}
22... Kg7 {[%clk 0:02:24.8]} 23. Rac1 {[%clk 0:01:38]} 23... e5 {[%clk
0:02:22.8]} 24. Be2 {[%clk 0:01:26]} 24... Rd5 {[%clk 0:02:07.4]} 25. b4 {[%clk
0:01:06.4]} 25... Rcd8 {[%clk 0:02:04.8]} 26. Nb3 {[%clk 0:00:55.8]} 26... Ne4+
{[%clk 0:02:01.6]} 27. Ke1 {[%clk 0:00:55.5]} 27... Nc3 {[%clk 0:01:57.3]} 28.
Rxd5 {[%clk 0:00:54.5]} 28... Bxd5 {[%clk 0:01:52.4]} 29. Nc5 {[%clk 0:00:52.5]}
29... Bc6 {[%clk 0:01:45.5]} 30. Bd3 {[%clk 0:00:42.9]} 30... Nd5 {[%clk
0:01:39.8]} 31. Ke2 {[%clk 0:00:33]} 31... Nxb4 {[%clk 0:01:39]} 32. Rb1 {[%clk
0:00:29.9]} 32... Nxd3 {[%clk 0:01:36.1]} 33. cxd3 {[%clk 0:00:29.9]} 33... Bb5
{[%clk 0:01:36.4]} 34. Rb3 {[%clk 0:00:30]} 34... Rd5 {[%clk 0:01:29.7]} 35. Rc3
{[%clk 0:00:17.9]} 35... Kf6 {[%clk 0:01:20.7]} 36. e4 {[%clk 0:00:09.2]} 36...
Rd4 {[%clk 0:01:18.4]} 37. Ke3 {[%clk 0:00:08.7]} 37... Kg5 {[%clk 0:01:15.3]}
38. Nxb7 {[%clk 0:00:04.3]} 38... Kh4 {[%clk 0:01:14.4]} 39. Nc5 {[%clk
0:00:03.9]} 39... Kxh3 {[%clk 0:01:11.3]} 40. Rc1 {[%clk 0:00:04.2]} 40... Kxg4
{[%clk 0:01:01]} 41. Rf1 {[%clk 0:00:04.5]} 41... f5 {[%clk 0:00:58.3]} 42. exf5
{[%clk 0:00:04.8]} 42... gxf5 {[%clk 0:00:58.2]} 43. Rg1+ {[%clk 0:00:04.6]}
43... Kh5 {[%clk 0:00:57.8]} 44. Ne6 {[%clk 0:00:04.9]} 44... Rxd3+ {[%clk
0:00:55.3]} 45. Kf2 {[%clk 0:00:05.6]} 45... Rd2+ {[%clk 0:00:54.5]} 46. Ke3
{[%clk 0:00:06]} 46... Re2+ {[%clk 0:00:54.5]} 47. Kf3 {[%clk 0:00:06.4]} 47...
e4+ {[%clk 0:00:55]} 48. Kf4 {[%clk 0:00:06.8]} 48... Rf2+ {[%clk 0:00:52.5]}
49. Ke5 {[%clk 0:00:02.4]} 49... e3 {[%clk 0:00:42.5]} 50. Ng7+ {[%clk
0:00:01.9]} 50... Kh4 {[%clk 0:00:42.5]} 51. Nxf5+ {[%clk 0:00:02.1]} 51...
Rxf5+ {[%clk 0:00:35.1]} 52. Kxf5 {[%clk 0:00:03]} 52... e2 {[%clk 0:00:35.4]}
53. Kf4 {[%clk 0:00:02.9]} 53... Kh3 {[%clk 0:00:35.6]} 54. Kf3 {[%clk
0:00:02.8]} 54... Kh2 {[%clk 0:00:36.2]} 55. Kf2 {[%clk 0:00:02.9]} 55... Kh3
{[%clk 0:00:29.1]} 56. Rh1+ {[%clk 0:00:02.4]} 56... Kg4 {[%clk 0:00:27.5]} 57.
Rxh6 {[%clk 0:00:03.3]} 57... Kf4 {[%clk 0:00:28.1]} 58. Rh3 {[%clk 0:00:02.3]}
58... Ke4 {[%clk 0:00:27.9]} 59. Ra3 {[%clk 0:00:02.3]} 59... Kd4 {[%clk
0:00:27.2]} 60. Ra1 {[%clk 0:00:02]} 60... Kc3 {[%clk 0:00:27.1]} 61. Ke1 {[%clk
0:00:01.6]} 61... Kb3 {[%clk 0:00:23.8]} 62. Kd2 {[%clk 0:00:01.4]} 62... Kb2
{[%clk 0:00:23.9]} 63. Re1 {[%clk 0:00:01.6]} 63... Kb3 {[%clk 0:00:24]} 64. Rh1
{[%clk 0:00:02]} 64... Kb4 {[%clk 0:00:24.1]} 65. Ra1 {[%clk 0:00:02.4]} 65...
Bc4 {[%clk 0:00:23]} 66. Ke1 {[%clk 0:00:01.5]} 66... Kc3 {[%clk 0:00:22.6]} 67.
Rb1 {[%clk 0:00:01.4]} 67... Bd3 {[%clk 0:00:22.6]} 68. Rc1+ {[%clk 0:00:01.8]}
68... Kb2 {[%clk 0:00:22]} 69. Rc5 {[%clk 0:00:01.6]} 69... Kb3 {[%clk
0:00:21.2]} 70. Rd5 {[%clk 0:00:01.3]} 70... Bc4 {[%clk 0:00:21.5]} 71. Re5
{[%clk 0:00:01.3]} 71... Kc3 {[%clk 0:00:21.6]} 72. Rxe2 {[%clk 0:00:01.3]}
72... Kb4 {[%clk 0:00:20.8]} 0-1

[Event "Late-Titled-Tuesday-Blitz-May-28-2024"]
[Site "Chess.com"]
[Date "2024.05.28"]
[Round "3"]
[White "artin10862"]
[Black "GianmarcoVaR"]
[Result "0-1"]
[WhiteElo "3015"]
[BlackElo "2723"]
[TimeControl "180+1"]
[EndTime "14:30:13 PDT"]
[Termination "GianmarcoVaR won on time"]

1. d4 {[%clk 0:03:00.9]} 1... Nf6 {[%clk 0:02:57.7]} 2. Bg5 {[%clk 0:03:00.5]}
2... d5 {[%clk 0:02:57.1]} 3. e3 {[%clk 0:02:58.4]} 3... c5 {[%clk 0:02:57.3]}
4. Bxf6 {[%clk 0:02:57.8]} 4... gxf6 {[%clk 0:02:57.3]} 5. dxc5 {[%clk
0:02:54.6]} 5... e6 {[%clk 0:02:57.6]} 6. Nf3 {[%clk 0:02:50.1]} 6... Bxc5
{[%clk 0:02:56.9]} 7. a3 {[%clk 0:02:49.9]} 7... Nc6 {[%clk 0:02:54.7]} 8. Nbd2
{[%clk 0:02:48.7]} 8... Be7 {[%clk 0:02:54.3]} 9. c3 {[%clk 0:02:47.2]} 9... f5
{[%clk 0:02:36.8]} 10. g3 {[%clk 0:02:46.9]} 10... Bf6 {[%clk 0:02:32.6]} 11.
Bg2 {[%clk 0:02:46.7]} 11... Qb6 {[%clk 0:02:30.5]} 12. Qc2 {[%clk 0:02:45]}
12... Qa6 {[%clk 0:02:22.5]} 13. Bf1 {[%clk 0:02:43.2]} 13... Qb6 {[%clk
0:02:21.3]} 14. Be2 {[%clk 0:02:41.5]} 14... Bd7 {[%clk 0:02:16.9]} 15. O-O
{[%clk 0:02:41]} 15... Rc8 {[%clk 0:02:15.7]} 16. Rfd1 {[%clk 0:02:38.3]} 16...
O-O {[%clk 0:02:01.1]} 17. Rab1 {[%clk 0:02:38]} 17... Kh8 {[%clk 0:02:00.5]}
18. Nb3 {[%clk 0:02:35.3]} 18... Ne7 {[%clk 0:01:55]} 19. Nbd2 {[%clk
0:02:29.1]} 19... Qa5 {[%clk 0:01:49.8]} 20. Re1 {[%clk 0:02:07.5]} 20... Ba4
{[%clk 0:01:42.5]} 21. Qc1 {[%clk 0:02:07.7]} 21... Rc7 {[%clk 0:01:31.9]} 22.
Bd1 {[%clk 0:02:07.6]} 22... Nc8 {[%clk 0:01:22.5]} 23. Nd4 {[%clk 0:01:56.6]}
23... Nd6 {[%clk 0:01:20.2]} 24. Bxa4 {[%clk 0:01:38.4]} 24... Qxa4 {[%clk
0:01:20.2]} 25. Qd1 {[%clk 0:01:36.5]} 25... Qxd1 {[%clk 0:01:19.6]} 26. Rexd1
{[%clk 0:01:37.4]} 26... b5 {[%clk 0:01:09.6]} 27. N4b3 {[%clk 0:01:35]} 27...
Nb7 {[%clk 0:01:03.4]} 28. Nf3 {[%clk 0:01:33.4]} 28... a5 {[%clk 0:00:59.9]}
29. Nbd4 {[%clk 0:01:33.1]} 29... Nd6 {[%clk 0:00:58.7]} 30. Kf1 {[%clk
0:01:32.8]} 30... Rb8 {[%clk 0:00:56.9]} 31. Rdc1 {[%clk 0:01:31.7]} 31... Kg7
{[%clk 0:00:55.9]} 32. Ke2 {[%clk 0:01:31.4]} 32... Ne4 {[%clk 0:00:55.7]} 33.
Nb3 {[%clk 0:01:30.2]} 33... b4 {[%clk 0:00:50.9]} 34. cxb4 {[%clk 0:01:22.1]}
34... Rxc1 {[%clk 0:00:50.9]} 35. Nxc1 {[%clk 0:01:18]} 35... axb4 {[%clk
0:00:51]} 36. a4 {[%clk 0:00:49.4]} 36... Ra8 {[%clk 0:00:51.1]} 37. Nd3 {[%clk
0:00:48.8]} 37... Rxa4 {[%clk 0:00:50.4]} 38. Nd2 {[%clk 0:00:49.5]} 38... Nd6
{[%clk 0:00:33.4]} 39. b3 {[%clk 0:00:45.7]} 39... Ra7 {[%clk 0:00:24.7]} 40.
Nxb4 {[%clk 0:00:45.6]} 40... Ne4 {[%clk 0:00:18.1]} 41. Nxe4 {[%clk 0:00:24.4]}
41... fxe4 {[%clk 0:00:18.3]} 42. Nc2 {[%clk 0:00:25.1]} 42... Ra2 {[%clk
0:00:15]} 43. Kd1 {[%clk 0:00:25.7]} 43... Kf8 {[%clk 0:00:08.5]} 44. b4 {[%clk
0:00:21.3]} 44... Ke8 {[%clk 0:00:09]} 45. b5 {[%clk 0:00:20.1]} 45... Kd8
{[%clk 0:00:09.7]} 46. b6 {[%clk 0:00:17.2]} 46... Kc8 {[%clk 0:00:10.4]} 47.
b7+ {[%clk 0:00:17.5]} 47... Kb8 {[%clk 0:00:11.1]} 48. Nb4 {[%clk 0:00:18.2]}
48... Rb2 {[%clk 0:00:06.6]} 49. Nc6+ {[%clk 0:00:09.6]} 49... Kxb7 {[%clk
0:00:06.1]} 50. Rxb2+ {[%clk 0:00:10.5]} 50... Bxb2 {[%clk 0:00:06]} 51. Nd8+
{[%clk 0:00:11.1]} 51... Kc7 {[%clk 0:00:06.4]} 52. Nxf7 {[%clk 0:00:11.4]}
52... Bf6 {[%clk 0:00:03.7]} 53. Nh6 {[%clk 0:00:08.9]} 53... Bg7 {[%clk
0:00:03.1]} 54. Nf7 {[%clk 0:00:06]} 54... h6 {[%clk 0:00:03.6]} 55. g4 {[%clk
0:00:04]} 55... Kd7 {[%clk 0:00:04.2]} 56. g5 {[%clk 0:00:04.6]} 56... h5 {[%clk
0:00:04.1]} 57. g6 {[%clk 0:00:04.1]} 57... Ke7 {[%clk 0:00:04.6]} 58. Ng5
{[%clk 0:00:04.7]} 58... Kf6 {[%clk 0:00:04.7]} 59. h4 {[%clk 0:00:05.3]} 59...
e5 {[%clk 0:00:04.3]} 60. Ke2 {[%clk 0:00:05.5]} 60... Kxg6 {[%clk 0:00:04.8]}
61. f3 {[%clk 0:00:05.2]} 61... Bf6 {[%clk 0:00:04.4]} 62. fxe4 {[%clk
0:00:04.9]} 62... Bxg5 {[%clk 0:00:04.8]} 63. hxg5 {[%clk 0:00:02.9]} 63... dxe4
{[%clk 0:00:05.3]} 64. Kf2 {[%clk 0:00:03.6]} 64... Kxg5 {[%clk 0:00:05.8]} 65.
Kg3 {[%clk 0:00:04.2]} 65... h4+ {[%clk 0:00:06.4]} 66. Kh3 {[%clk 0:00:04.6]}
66... Kh5 {[%clk 0:00:07.1]} 0-1